[Event "Titled Tuesday Blitz July 27 2021"]
[White "Urazayev, Arystanbek"]
[Black "Wiewiora, Eneasz"]
[WhiteFideId "13709810"]
[BlackFideId "1140396"]
[WhiteElo "2321"]
[BlackElo "2312"]
[Result "1-0"]
[Round "10"]
[TimeControl "180+1"]
[Date "2021.07.27"]
[WhiteClock "0:00:57"]
[BlackClock "0:00:02"]

1. d4 {[%clk 0:03:00]}  d5 {[%clk 0:02:59]} 2. c4 {[%clk 0:03:01]}  e6 {[%clk 0:02:59]} 3. Nc3 {[%clk 0:03:01]}  Nf6 {[%clk 0:02:59]} 4. Nf3 {[%clk 0:03:02]}  a6 {[%clk 0:02:58]} 5. cxd5 {[%clk 0:03:00]}  exd5 {[%clk 0:02:59]} 6. Bg5 {[%clk 0:03:01]}  Be6 {[%clk 0:02:59]} 7. Bxf6 {[%clk 0:03:01]}  Qxf6 {[%clk 0:02:57]} 8. Qb3 {[%clk 0:03:02]}  Ra7 {[%clk 0:02:52]} 9. h4 {[%clk 0:03:02]}  Qd8 {[%clk 0:02:39]} 10. g3 {[%clk 0:03:00]}  Be7 {[%clk 0:02:35]} 11. Bh3 {[%clk 0:03:00]}  Bxh3 {[%clk 0:02:33]} 12. Rxh3 {[%clk 0:03:01]}  c6 {[%clk 0:02:34]} 13. e4 {[%clk 0:02:57]}  dxe4 {[%clk 0:02:32]} 14. Nxe4 {[%clk 0:02:58]}  O-O {[%clk 0:02:32]} 15. g4 {[%clk 0:02:43]}  a5 {[%clk 0:02:29]} 16. O-O-O {[%clk 0:02:41]}  a4 {[%clk 0:02:29]} 17. Qd3 {[%clk 0:02:41]}  a3 {[%clk 0:02:29]} 18. b3 {[%clk 0:02:36]}  Na6 {[%clk 0:02:26]} 19. Kb1 {[%clk 0:02:24]}  Nb4 {[%clk 0:02:25]} 20. Qd2 {[%clk 0:02:23]}  Nd5 {[%clk 0:01:58]} 21. Ne5 {[%clk 0:02:20]}  f6 {[%clk 0:01:47]} 22. Nd3 {[%clk 0:02:15]}  Re8 {[%clk 0:01:28]} 23. g5 {[%clk 0:02:10]}  f5 {[%clk 0:01:24]} 24. Nec5 {[%clk 0:02:08]}  Bxc5 {[%clk 0:01:21]} 25. Nxc5 {[%clk 0:02:07]}  b6 {[%clk 0:01:18]} 26. Nd3 {[%clk 0:02:06]}  Rae7 {[%clk 0:01:17]} 27. Ne5 {[%clk 0:02:04]}  Rxe5 {[%clk 0:01:09]} 28. dxe5 {[%clk 0:02:03]}  Rxe5 {[%clk 0:01:09]} 29. Rd3 {[%clk 0:02:02]}  Qe7 {[%clk 0:01:06]} 30. Qc1 {[%clk 0:01:53]}  Re2 {[%clk 0:01:01]} 31. Qxc6 {[%clk 0:01:25]}  Rb2+ {[%clk 0:00:34]} 32. Kc1 {[%clk 0:01:25]}  Kf8 {[%clk 0:00:05]} 33. Qc8+ {[%clk 0:01:13]}  Kf7 {[%clk 0:00:04]} 34. Qxf5+ {[%clk 0:01:10]}  Nf6 {[%clk 0:00:02]} 35. Rd7 {[%clk 0:00:58]}  Qxd7 {[%clk 0:00:02]} 36. Rxd7+ {[%clk 0:00:58]}  Ke8 {[%clk 0:00:02]} 37. Qe6+ {[%clk 0:00:57]} 1-0


[Site "https://www.chess.com"]

[Event "Titled Tuesday Blitz July 27 2021"]
[White "ValeriyGrinev"]
[Black "Palchuk, Andrii"]
[BlackFideId "14176688"]
[WhiteElo "2596"]
[BlackElo "2284"]
[Result "1-0"]
[Round "10"]
[TimeControl "180+1"]
[Date "2021.07.27"]
[WhiteClock "0:00:38"]
[BlackClock "0:00:01"]

1. d4 {[%clk 0:03:00]}  Nf6 {[%clk 0:02:32]} 2. c4 {[%clk 0:03:00]}  g6 {[%clk 0:02:30]} 3. Nc3 {[%clk 0:02:59]}  Bg7 {[%clk 0:02:30]} 4. e4 {[%clk 0:02:59]}  d6 {[%clk 0:02:30]} 5. Be2 {[%clk 0:02:59]}  O-O {[%clk 0:02:30]} 6. Be3 {[%clk 0:02:58]}  Nbd7 {[%clk 0:02:29]} 7. h3 {[%clk 0:02:56]}  e5 {[%clk 0:02:29]} 8. d5 {[%clk 0:02:56]}  a5 {[%clk 0:02:28]} 9. Nf3 {[%clk 0:02:56]}  b6 {[%clk 0:02:25]} 10. Nd2 {[%clk 0:02:54]}  Nc5 {[%clk 0:02:25]} 11. g4 {[%clk 0:02:54]}  Ne8 {[%clk 0:02:21]} 12. h4 {[%clk 0:02:48]}  f5 {[%clk 0:02:16]} 13. gxf5 {[%clk 0:02:49]}  gxf5 {[%clk 0:02:15]} 14. Bg5 {[%clk 0:02:49]}  Nf6 {[%clk 0:02:11]} 15. Rg1 {[%clk 0:02:31]}  Kh8 {[%clk 0:01:39]} 16. Qc2 {[%clk 0:02:18]}  fxe4 {[%clk 0:01:17]} 17. Ndxe4 {[%clk 0:02:17]}  Bf5 {[%clk 0:01:09]} 18. f3 {[%clk 0:02:12]}  Bxe4 {[%clk 0:01:02]} 19. fxe4 {[%clk 0:02:05]}  Qe8 {[%clk 0:00:55]} 20. O-O-O {[%clk 0:02:04]}  h6 {[%clk 0:00:36]} 21. Be3 {[%clk 0:02:03]}  a4 {[%clk 0:00:27]} 22. Rdf1 {[%clk 0:02:02]}  a3 {[%clk 0:00:26]} 23. b4 {[%clk 0:01:55]}  Na6 {[%clk 0:00:25]} 24. Qd2 {[%clk 0:01:52]}  Ng8 {[%clk 0:00:17]} 25. Nb5 {[%clk 0:01:44]}  Qe7 {[%clk 0:00:17]} 26. h5 {[%clk 0:01:23]}  Rxf1+ {[%clk 0:00:14]} 27. Rxf1 {[%clk 0:01:22]}  Rf8 {[%clk 0:00:14]} 28. Rxf8 {[%clk 0:01:20]}  Qxf8 {[%clk 0:00:15]} 29. Kc2 {[%clk 0:01:20]}  Qf7 {[%clk 0:00:12]} 30. Kb3 {[%clk 0:01:17]}  Nf6 {[%clk 0:00:09]} 31. Bxh6 {[%clk 0:01:17]}  Nxe4 {[%clk 0:00:09]} 32. Qe3 {[%clk 0:01:15]}  Nf6 {[%clk 0:00:05]} 33. Qg5 {[%clk 0:01:11]}  Bxh6 {[%clk 0:00:04]} 34. Qxh6+ {[%clk 0:01:11]}  Kg8 {[%clk 0:00:04]} 35. Qg5+ {[%clk 0:01:02]}  Qg7 {[%clk 0:00:04]} 36. Qf5 {[%clk 0:00:50]}  Qg3+ {[%clk 0:00:04]} 37. Ka4 {[%clk 0:00:50]}  Qg7 {[%clk 0:00:01]} 38. Qc8+ {[%clk 0:00:50]}  Kh7 {[%clk 0:00:01]} 39. Qxa6 {[%clk 0:00:51]}  Kh6 {[%clk 0:00:01]} 40. Nc3 {[%clk 0:00:50]}  Qg3 {[%clk 0:00:01]} 41. Nd1 {[%clk 0:00:38]}  Qe1 {[%clk 0:00:01]} 42. c5 {[%clk 0:00:38]}  Qxe2 {[%clk 0:00:01]} 43. Qxe2 {[%clk 0:00:38]} 1-0


[Site "https://www.chess.com"]

[Event "Titled Tuesday Blitz July 27 2021"]
[White "Vokhidov, Shamsiddin"]
[Black "Tristan, Leonardo"]
[WhiteFideId "14204223"]
[BlackFideId "113816"]
[WhiteElo "2572"]
[BlackElo "2404"]
[Result "1-0"]
[Round "10"]
[TimeControl "180+1"]
[Date "2021.07.27"]
[WhiteClock "0:01:48"]
[BlackClock "0:00:17"]

1. e4 {[%clk 0:03:00]}  c5 {[%clk 0:03:00]} 2. Nf3 {[%clk 0:03:00]}  Nc6 {[%clk 0:03:00]} 3. d4 {[%clk 0:02:59]}  cxd4 {[%clk 0:03:01]} 4. Nxd4 {[%clk 0:03:00]}  Nf6 {[%clk 0:03:01]} 5. Nc3 {[%clk 0:03:00]}  e6 {[%clk 0:03:02]} 6. g3 {[%clk 0:03:00]}  d5 {[%clk 0:02:56]} 7. Bg2 {[%clk 0:02:59]}  dxe4 {[%clk 0:02:13]} 8. Nxc6 {[%clk 0:02:58]}  Qxd1+ {[%clk 0:02:13]} 9. Kxd1 {[%clk 0:02:59]}  bxc6 {[%clk 0:02:14]} 10. Nxe4 {[%clk 0:03:00]}  Nd5 {[%clk 0:02:07]} 11. c4 {[%clk 0:02:58]}  Nb4 {[%clk 0:02:07]} 12. a3 {[%clk 0:02:53]}  Nd3 {[%clk 0:02:05]} 13. Ke2 {[%clk 0:02:52]}  Nxc1+ {[%clk 0:02:04]} 14. Raxc1 {[%clk 0:02:53]}  Rb8 {[%clk 0:02:05]} 15. b4 {[%clk 0:02:48]}  a5 {[%clk 0:02:05]} 16. bxa5 {[%clk 0:02:43]}  Rb2+ {[%clk 0:02:03]} 17. Kd3 {[%clk 0:02:39]}  Bxa3 {[%clk 0:01:59]} 18. Rb1 {[%clk 0:02:37]}  Rxb1 {[%clk 0:01:46]} 19. Rxb1 {[%clk 0:02:37]}  Ke7 {[%clk 0:01:46]} 20. Kc3 {[%clk 0:02:28]}  f5 {[%clk 0:01:42]} 21. Ra1 {[%clk 0:02:26]}  Bd6 {[%clk 0:01:26]} 22. Nxd6 {[%clk 0:02:26]}  Kxd6 {[%clk 0:01:27]} 23. a6 {[%clk 0:02:26]}  Kc7 {[%clk 0:01:28]} 24. c5 {[%clk 0:02:22]}  e5 {[%clk 0:01:21]} 25. Bf1 {[%clk 0:02:12]}  Rd8 {[%clk 0:00:55]} 26. Bc4 {[%clk 0:02:05]}  Kb8 {[%clk 0:00:51]} 27. Rb1+ {[%clk 0:02:03]}  Ka7 {[%clk 0:00:49]} 28. Rb6 {[%clk 0:02:01]}  Bd7 {[%clk 0:00:26]} 29. Rb7+ {[%clk 0:02:00]}  Ka8 {[%clk 0:00:27]} 30. Bb3 {[%clk 0:01:53]}  g5 {[%clk 0:00:16]} 31. Ba4 {[%clk 0:01:52]}  Be8 {[%clk 0:00:17]} 32. Re7 {[%clk 0:01:48]} 1-0


[Site "https://www.chess.com"]

[Event "Titled Tuesday Blitz July 27 2021"]
[White "Walentukiewicz, Michal"]
[Black "Chernobay, Artem"]
[WhiteFideId "1126903"]
[BlackFideId "4167406"]
[WhiteElo "1974"]
[BlackElo "2480"]
[Result "1/2-1/2"]
[Round "10"]
[TimeControl "180+1"]
[Date "2021.07.27"]
[WhiteClock "0:01:21"]
[BlackClock "0:02:05"]

1. g3 {[%clk 0:02:57]}  Nf6 {[%clk 0:02:59]} 2. Bg2 {[%clk 0:02:49]}  e5 {[%clk 0:02:58]} 3. c4 {[%clk 0:02:49]}  d5 {[%clk 0:02:56]} 4. cxd5 {[%clk 0:02:50]}  Nxd5 {[%clk 0:02:57]} 5. Nc3 {[%clk 0:02:50]}  Nb6 {[%clk 0:02:57]} 6. Nf3 {[%clk 0:02:49]}  Nc6 {[%clk 0:02:55]} 7. O-O {[%clk 0:02:49]}  Be7 {[%clk 0:02:55]} 8. a4 {[%clk 0:02:50]}  a5 {[%clk 0:02:49]} 9. d3 {[%clk 0:02:49]}  O-O {[%clk 0:02:48]} 10. Be3 {[%clk 0:02:49]}  Re8 {[%clk 0:02:45]} 11. Rc1 {[%clk 0:02:45]}  Bf8 {[%clk 0:02:44]} 12. Ne4 {[%clk 0:02:45]}  Nb4 {[%clk 0:02:34]} 13. Bc5 {[%clk 0:02:35]}  Bd7 {[%clk 0:02:28]} 14. Bxf8 {[%clk 0:02:34]}  Kxf8 {[%clk 0:02:28]} 15. d4 {[%clk 0:02:26]}  Bxa4 {[%clk 0:02:24]} 16. b3 {[%clk 0:02:24]}  Bc6 {[%clk 0:02:23]} 17. Nxe5 {[%clk 0:02:13]}  Bd5 {[%clk 0:02:22]} 18. Nc5 {[%clk 0:01:53]}  Kg8 {[%clk 0:02:19]} 19. e4 {[%clk 0:01:47]}  Bc6 {[%clk 0:02:17]} 20. Nxc6 {[%clk 0:01:47]}  bxc6 {[%clk 0:02:16]} 21. Qd2 {[%clk 0:01:31]}  h6 {[%clk 0:02:10]} 22. Rfd1 {[%clk 0:01:29]}  Qe7 {[%clk 0:02:05]} 23. Nd3 {[%clk 0:01:21]} 1/2-1/2


[Site "https://www.chess.com"]

[Event "Titled Tuesday Blitz July 27 2021"]
[White "Willow, Jonah B"]
[Black "Khusnutdinov, Rustam"]
[WhiteFideId "438804"]
[BlackFideId "13701703"]
[WhiteElo "2261"]
[BlackElo "2571"]
[Result "0-1"]
[Round "10"]
[TimeControl "180+1"]
[Date "2021.07.27"]
[WhiteClock "0:00:06"]
[BlackClock "0:01:32"]

1. e4 {[%clk 0:03:00]}  e6 {[%clk 0:02:58]} 2. d4 {[%clk 0:03:01]}  d5 {[%clk 0:02:59]} 3. Nd2 {[%clk 0:03:02]}  c5 {[%clk 0:02:58]} 4. Ngf3 {[%clk 0:03:02]}  Nc6 {[%clk 0:02:58]} 5. exd5 {[%clk 0:03:01]}  exd5 {[%clk 0:02:59]} 6. Bb5 {[%clk 0:03:02]}  Qe7+ {[%clk 0:03:00]} 7. Be2 {[%clk 0:02:59]}  Qc7 {[%clk 0:03:00]} 8. O-O {[%clk 0:02:49]}  Nf6 {[%clk 0:03:00]} 9. dxc5 {[%clk 0:02:49]}  Bxc5 {[%clk 0:03:01]} 10. Nb3 {[%clk 0:02:48]}  Bb6 {[%clk 0:03:01]} 11. Bg5 {[%clk 0:02:44]}  Be6 {[%clk 0:02:55]} 12. c3 {[%clk 0:02:28]}  Ne4 {[%clk 0:02:54]} 13. Bh4 {[%clk 0:02:22]}  O-O {[%clk 0:02:51]} 14. Nbd4 {[%clk 0:02:20]}  Bg4 {[%clk 0:02:40]} 15. Nb5 {[%clk 0:02:06]}  Qd7 {[%clk 0:02:38]} 16. c4 {[%clk 0:01:58]}  d4 {[%clk 0:02:04]} 17. Nfxd4 {[%clk 0:01:41]}  Bxe2 {[%clk 0:02:02]} 18. Nxe2 {[%clk 0:01:19]}  Qg4 {[%clk 0:01:58]} 19. Bg3 {[%clk 0:01:15]}  Rad8 {[%clk 0:01:50]} 20. h3 {[%clk 0:00:40]}  Qg6 {[%clk 0:01:45]} 21. Qc1 {[%clk 0:00:14]}  Nxg3 {[%clk 0:01:45]} 22. Nxg3 {[%clk 0:00:14]}  Qxg3 {[%clk 0:01:40]} 23. c5 {[%clk 0:00:15]}  Qe5 {[%clk 0:01:39]} 24. cxb6 {[%clk 0:00:09]}  Qxb5 {[%clk 0:01:40]} 25. bxa7 {[%clk 0:00:09]}  Nxa7 {[%clk 0:01:41]} 26. Qf4 {[%clk 0:00:09]}  Nc6 {[%clk 0:01:40]} 27. Rfb1 {[%clk 0:00:07]}  Rfe8 {[%clk 0:01:39]} 28. a4 {[%clk 0:00:07]}  Qb4 {[%clk 0:01:36]} 29. Qxb4 {[%clk 0:00:05]}  Nxb4 {[%clk 0:01:36]} 30. Rd1 {[%clk 0:00:05]}  Kf8 {[%clk 0:01:36]} 31. Rac1 {[%clk 0:00:05]}  Rxd1+ {[%clk 0:01:34]} 32. Rxd1 {[%clk 0:00:05]}  Ke7 {[%clk 0:01:34]} 33. Rd4 {[%clk 0:00:05]}  Nc6 {[%clk 0:01:33]} 34. Rh4 {[%clk 0:00:05]}  h6 {[%clk 0:01:33]} 35. b4 {[%clk 0:00:06]}  Kd6 {[%clk 0:01:32]} 36. b5 {[%clk 0:00:06]}  Na5 {[%clk 0:01:33]} 37. Rg4 {[%clk 0:00:06]}  g6 {[%clk 0:01:32]} 38. Rf4 {[%clk 0:00:07]}  Re7 {[%clk 0:01:32]} 39. Rh4 {[%clk 0:00:07]}  h5 {[%clk 0:01:33]} 40. g4 {[%clk 0:00:07]}  hxg4 {[%clk 0:01:33]} 41. hxg4 {[%clk 0:00:07]}  Kc5 {[%clk 0:01:34]} 42. g5 {[%clk 0:00:08]}  Nc4 {[%clk 0:01:34]} 43. Rf4 {[%clk 0:00:08]}  b6 {[%clk 0:01:32]} 44. Kg2 {[%clk 0:00:07]}  Rc7 {[%clk 0:01:32]} 45. Rf6 {[%clk 0:00:06]}  Kb4 {[%clk 0:01:32]} 46. Rf4 {[%clk 0:00:06]}  Kxa4 {[%clk 0:01:32]} 0-1


[Site "https://www.chess.com"]

[Event "Titled Tuesday Blitz July 27 2021"]
[White "Zubov, Alexander"]
[Black "Sadhwani, Raunak"]
[WhiteFideId "14109409"]
[BlackFideId "35093487"]
[WhiteElo "2740"]
[BlackElo "2514"]
[Result "1/2-1/2"]
[Round "10"]
[TimeControl "180+1"]
[Date "2021.07.27"]
[WhiteClock "0:00:36"]
[BlackClock "0:00:53"]

1. d4 {[%clk 0:03:00]}  Nf6 {[%clk 0:02:58]} 2. Nf3 {[%clk 0:03:01]}  d5 {[%clk 0:02:57]} 3. c4 {[%clk 0:03:01]}  e6 {[%clk 0:02:55]} 4. Nc3 {[%clk 0:03:00]}  a6 {[%clk 0:02:56]} 5. cxd5 {[%clk 0:03:00]}  exd5 {[%clk 0:02:56]} 6. Bf4 {[%clk 0:03:01]}  Bd6 {[%clk 0:02:55]} 7. Bg3 {[%clk 0:03:01]}  O-O {[%clk 0:02:55]} 8. Qc2 {[%clk 0:03:02]}  Bg4 {[%clk 0:02:53]} 9. e3 {[%clk 0:03:00]}  Bh5 {[%clk 0:02:54]} 10. Bd3 {[%clk 0:02:50]}  Bg6 {[%clk 0:02:54]} 11. Ne5 {[%clk 0:02:35]}  Bxd3 {[%clk 0:02:44]} 12. Nxd3 {[%clk 0:02:34]}  c6 {[%clk 0:02:35]} 13. Nc5 {[%clk 0:02:11]}  Ra7 {[%clk 0:02:09]} 14. N3a4 {[%clk 0:02:07]}  h6 {[%clk 0:01:51]} 15. Bxd6 {[%clk 0:01:49]}  Qxd6 {[%clk 0:01:52]} 16. O-O-O {[%clk 0:01:47]}  Nbd7 {[%clk 0:01:43]} 17. Kb1 {[%clk 0:01:47]}  b6 {[%clk 0:01:41]} 18. Nxd7 {[%clk 0:01:46]}  Nxd7 {[%clk 0:01:42]} 19. Rc1 {[%clk 0:01:45]}  Rc7 {[%clk 0:01:42]} 20. Qd3 {[%clk 0:01:43]}  a5 {[%clk 0:01:42]} 21. Rc2 {[%clk 0:01:40]}  Rfc8 {[%clk 0:01:40]} 22. Rd1 {[%clk 0:01:39]}  Qb4 {[%clk 0:01:33]} 23. Qb3 {[%clk 0:01:32]}  Qxb3 {[%clk 0:01:32]} 24. axb3 {[%clk 0:01:33]}  Kf8 {[%clk 0:01:29]} 25. Kc1 {[%clk 0:01:31]}  Ke7 {[%clk 0:01:27]} 26. Kd2 {[%clk 0:01:31]}  Kd6 {[%clk 0:01:12]} 27. Ke2 {[%clk 0:01:31]}  f5 {[%clk 0:01:07]} 28. h3 {[%clk 0:01:28]}  h5 {[%clk 0:01:08]} 29. g4 {[%clk 0:01:26]}  hxg4 {[%clk 0:01:07]} 30. hxg4 {[%clk 0:01:26]}  fxg4 {[%clk 0:01:08]} 31. Rg1 {[%clk 0:01:26]}  Nf6 {[%clk 0:01:04]} 32. Nxb6 {[%clk 0:01:23]}  Rb8 {[%clk 0:01:04]} 33. Na4 {[%clk 0:01:23]}  Rxb3 {[%clk 0:01:05]} 34. Nc5 {[%clk 0:01:18]}  Rb5 {[%clk 0:01:05]} 35. Nd3 {[%clk 0:01:17]}  Rcb7 {[%clk 0:01:03]} 36. Rgc1 {[%clk 0:01:02]}  R7b6 {[%clk 0:01:03]} 37. Rg1 {[%clk 0:01:02]}  Rb3 {[%clk 0:00:58]} 38. Ra1 {[%clk 0:01:01]}  R3b5 {[%clk 0:00:53]} 39. Rg1 {[%clk 0:00:55]}  Rb3 {[%clk 0:00:53]} 40. Ra1 {[%clk 0:00:45]}  R3b5 {[%clk 0:00:53]} 41. Rg1 {[%clk 0:00:36]} 1/2-1/2


[Site "https://www.chess.com"]

[Event "Titled Tuesday Blitz July 27 2021"]
[White "Agibileg, Uurtsaikh"]
[Black "Gonzalez, Francisco Silva"]
[WhiteFideId "4901606"]
[BlackFideId "1512285"]
[WhiteElo "2117"]
[BlackElo "2159"]
[Result "1-0"]
[Round "11"]
[TimeControl "180+1"]
[Date "2021.07.27"]
[WhiteClock "0:01:48"]
[BlackClock "0:01:08"]

1. d4 {[%clk 0:03:00]}  Nf6 {[%clk 0:02:59]} 2. c4 {[%clk 0:03:01]}  e6 {[%clk 0:02:59]} 3. Nc3 {[%clk 0:03:01]}  Bb4 {[%clk 0:02:59]} 4. a3 {[%clk 0:03:01]}  Bxc3+ {[%clk 0:02:59]} 5. bxc3 {[%clk 0:03:02]}  d6 {[%clk 0:03:00]} 6. f3 {[%clk 0:02:59]}  b6 {[%clk 0:02:59]} 7. e4 {[%clk 0:03:00]}  Bb7 {[%clk 0:02:59]} 8. Bd3 {[%clk 0:03:00]}  Nc6 {[%clk 0:02:59]} 9. Ne2 {[%clk 0:03:00]}  e5 {[%clk 0:02:58]} 10. O-O {[%clk 0:03:00]}  Nd7 {[%clk 0:02:56]} 11. f4 {[%clk 0:02:57]}  f6 {[%clk 0:02:55]} 12. Ng3 {[%clk 0:02:49]}  g6 {[%clk 0:02:55]} 13. Qg4 {[%clk 0:02:43]}  Qe7 {[%clk 0:02:55]} 14. Be3 {[%clk 0:02:41]}  O-O-O {[%clk 0:02:54]} 15. c5 {[%clk 0:02:37]}  dxc5 {[%clk 0:02:52]} 16. d5 {[%clk 0:02:37]}  Na5 {[%clk 0:02:44]} 17. f5 {[%clk 0:02:37]}  Rhg8 {[%clk 0:02:37]} 18. Qe2 {[%clk 0:02:30]}  Kb8 {[%clk 0:02:30]} 19. Rab1 {[%clk 0:02:28]}  c6 {[%clk 0:02:28]} 20. c4 {[%clk 0:02:26]}  cxd5 {[%clk 0:02:21]} 21. exd5 {[%clk 0:02:15]}  Rde8 {[%clk 0:02:16]} 22. Ne4 {[%clk 0:02:12]}  g5 {[%clk 0:02:12]} 23. Bd2 {[%clk 0:02:12]}  Ka8 {[%clk 0:01:59]} 24. Bxa5 {[%clk 0:02:13]}  bxa5 {[%clk 0:01:59]} 25. Bc2 {[%clk 0:02:13]}  Nb6 {[%clk 0:01:55]} 26. Rb5 {[%clk 0:02:12]}  Ba6 {[%clk 0:01:53]} 27. Rxc5 {[%clk 0:02:08]}  Rc8 {[%clk 0:01:52]} 28. d6 {[%clk 0:02:00]}  Qf7 {[%clk 0:01:49]} 29. Bd3 {[%clk 0:02:00]}  Bxc4 {[%clk 0:01:45]} 30. Bxc4 {[%clk 0:01:59]}  Nxc4 {[%clk 0:01:45]} 31. d7 {[%clk 0:01:54]}  Rxc5 {[%clk 0:01:41]} 32. Nxc5 {[%clk 0:01:53]}  Nb6 {[%clk 0:01:32]} 33. Rd1 {[%clk 0:01:50]}  Nxd7 {[%clk 0:01:11]} 34. Qe4+ {[%clk 0:01:48]}  Qd5 {[%clk 0:01:08]} 35. Qxd5+ {[%clk 0:01:48]} 1-0


[Site "https://www.chess.com"]

[Event "Titled Tuesday Blitz July 27 2021"]
[White "Akhayan, Ruben"]
[Black "Manukyan, Artyom"]
[WhiteFideId "204439"]
[BlackFideId "13305786"]
[WhiteElo "2166"]
[BlackElo "2034"]
[Result "0-1"]
[Round "11"]
[TimeControl "180+1"]
[Date "2021.07.27"]
[WhiteClock "0:00:05"]
[BlackClock "0:00:37"]

1. d4 {[%clk 0:03:00]}  d5 {[%clk 0:02:55]} 2. c4 {[%clk 0:03:00]}  e6 {[%clk 0:02:55]} 3. Nc3 {[%clk 0:02:59]}  Nf6 {[%clk 0:02:55]} 4. Nf3 {[%clk 0:02:59]}  Be7 {[%clk 0:02:55]} 5. cxd5 {[%clk 0:02:58]}  exd5 {[%clk 0:02:56]} 6. Bg5 {[%clk 0:02:57]}  c6 {[%clk 0:02:56]} 7. e3 {[%clk 0:02:53]}  Bf5 {[%clk 0:02:56]} 8. Bxf6 {[%clk 0:02:44]}  Bxf6 {[%clk 0:02:54]} 9. Bd3 {[%clk 0:02:44]}  Bxd3 {[%clk 0:02:55]} 10. Qxd3 {[%clk 0:02:44]}  O-O {[%clk 0:02:56]} 11. O-O {[%clk 0:02:44]}  Nd7 {[%clk 0:02:56]} 12. b4 {[%clk 0:02:44]}  a6 {[%clk 0:02:55]} 13. a4 {[%clk 0:02:43]}  b5 {[%clk 0:02:56]} 14. Rfc1 {[%clk 0:02:31]}  Be7 {[%clk 0:02:53]} 15. Rab1 {[%clk 0:02:21]}  Nb6 {[%clk 0:02:52]} 16. Ne5 {[%clk 0:02:14]}  Qd6 {[%clk 0:02:47]} 17. a5 {[%clk 0:02:08]}  Nc4 {[%clk 0:02:46]} 18. Nxc4 {[%clk 0:02:04]}  bxc4 {[%clk 0:02:47]} 19. Qf5 {[%clk 0:02:03]}  Rab8 {[%clk 0:02:43]} 20. e4 {[%clk 0:01:51]}  g6 {[%clk 0:02:32]} 21. Qf3 {[%clk 0:01:42]}  Rfd8 {[%clk 0:02:05]} 22. exd5 {[%clk 0:01:36]}  cxd5 {[%clk 0:02:03]} 23. b5 {[%clk 0:01:36]}  axb5 {[%clk 0:01:57]} 24. Nxb5 {[%clk 0:01:35]}  Qa6 {[%clk 0:01:54]} 25. Nc7 {[%clk 0:01:24]}  Rxb1 {[%clk 0:01:52]} 26. Rxb1 {[%clk 0:01:15]}  Qxa5 {[%clk 0:01:53]} 27. Nb5 {[%clk 0:00:53]}  Bf8 {[%clk 0:01:51]} 28. Nc3 {[%clk 0:00:50]}  Bg7 {[%clk 0:01:46]} 29. Rd1 {[%clk 0:00:42]}  Qa3 {[%clk 0:01:40]} 30. h4 {[%clk 0:00:39]}  h5 {[%clk 0:01:39]} 31. Qe3 {[%clk 0:00:28]}  Qb3 {[%clk 0:01:29]} 32. Rb1 {[%clk 0:00:26]}  Qc2 {[%clk 0:01:25]} 33. Rb7 {[%clk 0:00:26]}  Qf5 {[%clk 0:00:46]} 34. Qe7 {[%clk 0:00:21]}  Qf6 {[%clk 0:00:44]} 35. Qxf6 {[%clk 0:00:11]}  Bxf6 {[%clk 0:00:45]} 36. Ne2 {[%clk 0:00:10]}  Bxh4 {[%clk 0:00:40]} 37. g3 {[%clk 0:00:09]}  Bf6 {[%clk 0:00:40]} 38. Rb6 {[%clk 0:00:08]}  Kg7 {[%clk 0:00:39]} 39. Kf1 {[%clk 0:00:08]}  Rc8 {[%clk 0:00:38]} 40. Nc3 {[%clk 0:00:05]}  Bxd4 {[%clk 0:00:37]} 0-1


[Site "https://www.chess.com"]

[Event "Titled Tuesday Blitz July 27 2021"]
[White "Arabidze, Meri"]
[Black "Gabrielian, Artur"]
[WhiteFideId "13604040"]
[BlackFideId "4131002"]
[WhiteElo "2432"]
[BlackElo "2523"]
[Result "0-1"]
[Round "11"]
[TimeControl "180+1"]
[Date "2021.07.27"]
[WhiteClock "0:00:07"]
[BlackClock "0:00:22"]

1. d4 {[%clk 0:02:57]}  Nf6 {[%clk 0:02:59]} 2. Nf3 {[%clk 0:02:57]}  g6 {[%clk 0:02:57]} 3. g3 {[%clk 0:02:58]}  Bg7 {[%clk 0:02:57]} 4. Bg2 {[%clk 0:02:58]}  O-O {[%clk 0:02:56]} 5. O-O {[%clk 0:02:59]}  d6 {[%clk 0:02:55]} 6. a4 {[%clk 0:02:59]}  Re8 {[%clk 0:02:47]} 7. a5 {[%clk 0:02:59]}  Na6 {[%clk 0:02:45]} 8. Nc3 {[%clk 0:02:57]}  c5 {[%clk 0:02:43]} 9. dxc5 {[%clk 0:02:50]}  Nxc5 {[%clk 0:02:43]} 10. Nd4 {[%clk 0:02:43]}  a6 {[%clk 0:02:38]} 11. e4 {[%clk 0:02:39]}  Bg4 {[%clk 0:02:35]} 12. f3 {[%clk 0:02:38]}  Bd7 {[%clk 0:02:34]} 13. Be3 {[%clk 0:02:38]}  Rc8 {[%clk 0:02:34]} 14. Qd2 {[%clk 0:02:30]}  h5 {[%clk 0:02:33]} 15. Rfd1 {[%clk 0:02:27]}  h4 {[%clk 0:02:33]} 16. Nde2 {[%clk 0:02:22]}  hxg3 {[%clk 0:02:30]} 17. hxg3 {[%clk 0:02:23]}  Qc7 {[%clk 0:02:29]} 18. Nf4 {[%clk 0:02:20]}  Ne6 {[%clk 0:02:24]} 19. Bb6 {[%clk 0:02:05]}  Qc4 {[%clk 0:02:03]} 20. Bf1 {[%clk 0:01:53]}  Qb4 {[%clk 0:02:00]} 21. Nd3 {[%clk 0:01:53]}  Qc4 {[%clk 0:01:56]} 22. Nc5 {[%clk 0:01:21]}  Qb4 {[%clk 0:01:38]} 23. Nd3 {[%clk 0:01:09]}  Qc4 {[%clk 0:01:36]} 24. e5 {[%clk 0:00:57]}  Nh5 {[%clk 0:01:15]} 25. Nc5 {[%clk 0:00:47]}  Qxc5+ {[%clk 0:01:02]} 26. Bxc5 {[%clk 0:00:46]}  Rxc5 {[%clk 0:01:00]} 27. f4 {[%clk 0:00:27]}  Nxg3 {[%clk 0:00:56]} 28. Bg2 {[%clk 0:00:26]}  Bh6 {[%clk 0:00:54]} 29. Nd5 {[%clk 0:00:17]}  Bc6 {[%clk 0:00:45]} 30. b4 {[%clk 0:00:16]}  Rc4 {[%clk 0:00:44]} 31. Qd3 {[%clk 0:00:12]}  Bb5 {[%clk 0:00:41]} 32. Qxg3 {[%clk 0:00:11]}  Nxf4 {[%clk 0:00:38]} 33. Nxf4 {[%clk 0:00:11]}  Bxf4 {[%clk 0:00:38]} 34. Qf3 {[%clk 0:00:10]}  Bxe5 {[%clk 0:00:33]} 35. Rf1 {[%clk 0:00:10]}  f5 {[%clk 0:00:30]} 36. Rae1 {[%clk 0:00:10]}  Bd4+ {[%clk 0:00:30]} 37. Kh1 {[%clk 0:00:09]}  Kg7 {[%clk 0:00:30]} 38. Qxb7 {[%clk 0:00:08]}  Rh8+ {[%clk 0:00:30]} 39. Bh3 {[%clk 0:00:08]}  Bc6+ {[%clk 0:00:29]} 40. Qxc6 {[%clk 0:00:07]}  Rxc6 {[%clk 0:00:29]} 41. Rxe7+ {[%clk 0:00:07]}  Kf6 {[%clk 0:00:30]} 42. Rb7 {[%clk 0:00:07]}  Rxh3+ {[%clk 0:00:29]} 43. Kg2 {[%clk 0:00:07]}  Rhc3 {[%clk 0:00:24]} 44. b5 {[%clk 0:00:08]}  Rxc2+ {[%clk 0:00:24]} 45. Kh1 {[%clk 0:00:08]}  R6c3 {[%clk 0:00:22]} 46. bxa6 {[%clk 0:00:07]}  Rh3# {[%clk 0:00:22]} 0-1


[Site "https://www.chess.com"]